bitfinex-derivatives/quotes_BTCF0:USTF0_20240905
["timestamp","ask_amount","ask_price","bid_price","bid_amount"]
[1725549186756,0.100345,56599.0,56598.0,0.00169]
[1725549189158,0.101345,56599.0,56598.0,0.00169]
[1725549189750,0.101345,56599.0,56598.0,0.090036]
[1725549189751,0.013,56599.0,56598.0,0.090036]
[1725549189949,0.013,56599.0,56598.0,0.36723188]
[1725549190152,0.101345,56599.0,56598.0,0.00643188]
[1725549190853,0.101345,56599.0,56598.0,0.00169]
[1725549191152,0.278035,56599.0,56598.0,0.00169]
[1725549191352,0.53008,56598.0,56576.0,0.3608]
[1725549191549,1.210318,56590.0,56579.0,0.00464209]
[1725549192164,1.210318,56590.0,56576.0,0.3608]
[1725549192165,1.828797,56590.0,56576.0,0.3608]
[1725549192482,0.088379,56577.0,56576.0,0.3608]
[1725549192654,0.092379,56577.0,56576.0,0.3608]
[1725549193359,0.004,56577.0,56576.0,0.449181]
[1725549193567,0.092379,56577.0,56576.0,0.3608]
[1725549193869,0.094379,56577.0,56576.0,0.3608]
[1725549194257,0.006,56577.0,56576.0,0.449181]
[1725549194458,0.088376,56579.0,56576.0,0.449181]
[1725549194660,0.00026501,56582.0,56581.0,0.088373]
[1725549195068,0.00026501,56582.0,56581.0,0.065373]
[1725549195256,0.00026501,56582.0,56580.0,0.31]
[1725549195566,0.002,56581.0,56580.0,0.31]
[1725549195762,0.002,56581.0,56580.0,0.398374]
[1725549196755,0.002,56581.0,56580.0,0.31]
[1725549196956,0.002,56581.0,56576.0,0.45318]
[1725549196957,0.088379,56577.0,56576.0,0.3648]
[1725549197257,0.002,56577.0,56576.0,0.6748]
[1725549197863,0.090379,56577.0,56576.0,0.3648]
[1725549198265,0.002,56577.0,56576.0,0.6748]
[1725549198755,0.002,56577.0,56576.0,0.3648]
[1725549199155,0.090379,56577.0,56576.0,0.004]
[1725549199552,0.178758,56577.0,56576.0,0.004]
[1725549200362,0.178758,56577.0,56576.0,0.402381]
[1725549200363,0.002,56577.0,56576.0,0.402381]
[1725549201263,0.00026501,56582.0,56576.0,0.314]
[1725549201563,0.00026501,56582.0,56581.0,0.088373]
[1725549202458,0.00026501,56582.0,56579.0,0.67172]
[1725549202459,0.08863701,56582.0,56579.0,0.67172]
[1725549202659,0.002,56580.0,56579.0,0.759176]
[1725549203166,0.002,56580.0,56579.0,0.76395104]
[1725549204667,0.002,56580.0,56579.0,0.76495104]
[1725549204963,1e-08,56582.0,56581.0,0.088373]
[1725549205167,1e-08,56582.0,56581.0,0.398373]
[1725549205666,1e-08,56582.0,56581.0,1.528573]
[1725549206052,1e-08,56582.0,56581.0,1.616946]
[1725549206859,1e-08,56582.0,56581.0,0.398373]
[1725549207061,0.09037101,56582.0,56581.0,0.22216388]
[1725549207260,0.09037101,56582.0,56579.0,0.36557504]
[1725549207261,0.088373,56581.0,56580.0,0.08753626]
[1725549207570,0.090373,56581.0,56579.0,0.36557504]
[1725549207869,0.002,56580.0,56579.0,0.76395104]
[1725549208060,0.002,56580.0,56579.0,0.89860403]
[1725549209371,0.002,56580.0,56579.0,1.0041488]
[1725549209566,0.088363,56588.0,56579.0,0.9157728]
[1725549209868,0.088363,56588.0,56587.0,0.08769753]
[1725549210068,0.088358,56591.0,56587.0,0.53233501]
[1725549210368,0.088359,56590.0,56588.0,0.22234478]
[1725549210566,0.088354,56593.0,56588.0,0.0877073]
[1725549210863,0.00026501,56595.0,56594.0,0.088353]
[1725549211057,0.00026501,56595.0,56594.0,0.31068467]
[1725549211257,0.00026501,56595.0,56594.0,0.32822467]
[1725549211463,0.00026501,56595.0,56594.0,0.13463464]
[1725549211665,0.08861601,56595.0,56594.0,0.13463464]
[1725549212060,0.08861601,56595.0,56594.0,0.22243892]
[1725549212268,0.08861601,56595.0,56594.0,0.23998074]
[1725549212572,0.08861601,56595.0,56594.0,0.58377839]
[1725549212573,0.00026501,56595.0,56594.0,0.58377839]
[1725549212871,1e-08,56595.0,56594.0,2.15914514]
[1725549213056,0.088321,56615.0,56594.0,2.1996137]
[1725549213259,0.08832,56615.0,56611.0,0.10558138]
[1725549213457,0.088321,56614.0,56613.0,0.0879838]
[1725549213757,0.449118,56616.0,56612.0,0.13462539]
[1725549213758,0.088323,56613.0,56612.0,0.0879838]
[1725549213958,0.090323,56613.0,56612.0,0.22258511]
[1725549214265,0.090323,56613.0,56612.0,0.22258527]
[1725549214764,0.090323,56613.0,56612.0,0.13459354]
[1725549215275,0.088328,56610.0,56608.0,0.07037814]
[1725549215457,0.088328,56610.0,56603.0,0.08796111]
[1725549215458,0.088337,56604.0,56603.0,0.07037918]
[1725549215657,0.088337,56604.0,56587.0,0.3608]
[1725549215658,0.08834,56602.0,56600.0,0.07037918]
[1725549215860,0.08834,56602.0,56586.0,0.088364]
[1725549215861,0.9633,56601.0,56598.0,0.07037918]
[1725549216055,0.9633,56601.0,56595.0,0.07037918]
[1725549216056,0.088348,56597.0,56595.0,0.07037918]
[1725549216262,0.849498,56596.0,56595.0,0.07037918]
[1725549216557,0.088357,56591.0,56590.0,0.08822612]
[1725549216868,0.450157,56591.0,56590.0,0.00026501]
[1725549217067,1.378634,56591.0,56590.0,0.07066426]
[1725549217268,0.176734,56585.0,56584.0,1.8e-07]
[1725549217470,0.088368,56584.0,56581.0,1.8e-07]
[1725549217657,0.087377,56578.0,56577.0,0.01]
[1725549217968,0.399377,56578.0,56577.0,0.01]
[1725549218162,0.397377,56578.0,56577.0,0.01]
[1725549218468,0.087377,56578.0,56577.0,0.01]
[1725549218666,0.087377,56578.0,56577.0,0.09799162]
[1725549218872,0.087377,56578.0,56577.0,0.01]
[1725549219260,0.397377,56578.0,56577.0,0.01]
[1725549219573,0.396377,56578.0,56577.0,0.01]
[1725549220373,0.845554,56578.0,56577.0,0.01]
[1725549220671,1.99138257,56578.0,56577.0,0.011]
[1725549221173,1.39138257,56578.0,56577.0,0.011]
[1725549221369,1.99138257,56578.0,56577.0,0.011]
[1725549222565,0.86114257,56578.0,56577.0,0.011]
[1725549222770,1.39138257,56578.0,56577.0,0.011]
[1725549222968,1.99138257,56578.0,56577.0,0.011]
[1725549223365,1.98038257,56578.0,56577.0,0.01]
[1725549223571,1.99438257,56578.0,56577.0,0.011]
[1725549223769,2.08275957,56578.0,56577.0,1e-06]
[1725549225069,1.48275957,56578.0,56577.0,1e-06]
[1725549226268,0.86414257,56578.0,56577.0,1e-06]
[1725549226664,0.81992428,56578.0,56577.0,1e-06]
[1725549228167,0.42154728,56578.0,56577.0,0.08838]
[1725549228371,0.41695871,56578.0,56577.0,1e-06]
[1725549228571,0.72695871,56578.0,56577.0,1e-06]
[1725549228771,1.94557571,56578.0,56577.0,1e-06]
[1725549229572,2.03395271,56578.0,56577.0,1e-06]
[1725549230869,0.088385,56573.0,56572.0,1e-08]
[1725549231073,0.088417,56553.0,56552.0,0.00877366]
[1725549231269,0.088417,56553.0,56552.0,0.088417]
[1725549231270,0.004,56553.0,56552.0,0.088417]
[1725549231474,0.3608,56555.0,56552.0,0.088417]
[1725549231677,0.3608,56555.0,56548.0,0.088423]
[1725549231870,0.3608,56555.0,56546.0,0.08799162]
[1725549231871,0.088421,56550.0,56549.0,0.088423]
[1725549232073,0.088424,56548.0,56547.0,0.00867905]
[1725549232474,0.092424,56548.0,56547.0,0.00867905]
[1725549232670,0.092424,56548.0,56544.0,0.00026501]
[1725549232671,0.088426,56547.0,56544.0,0.00026501]
[1725549232876,0.004,56545.0,56544.0,0.08869501]
[1725549233375,0.004,56545.0,56543.0,0.00468471]
[1725549233376,0.004,56545.0,56542.0,0.36288795]
[1725549233678,0.36557047,56550.0,56542.0,0.45132195]
[1725549233679,0.004,56543.0,56542.0,0.45132195]
[1725549233880,0.004,56543.0,56542.0,0.76132195]
[1725549234186,0.004,56543.0,56542.0,1.89188195]
[1725549235169,0.004,56543.0,56542.0,1.29188195]
[1725549235374,0.092432,56543.0,56542.0,0.35895758]
[1725549235582,0.004,56543.0,56542.0,0.37421937]
[1725549235988,0.004,56543.0,56542.0,0.90477937]
[1725549236183,0.004,56543.0,56542.0,0.99321337]
[1725549236487,0.004,56543.0,56542.0,1.59321337]
[1725549236988,0.005,56543.0,56542.0,1.59321337]
[1725549237687,0.093432,56543.0,56542.0,0.36557786]
[1725549238485,0.005,56543.0,56542.0,0.46293204]
[1725549238781,0.005,56543.0,56542.0,0.77293204]
[1725549238975,0.005,56543.0,56542.0,0.76401186]
[1725549239484,0.088429,56545.0,56542.0,0.77275068]
[1725549239678,0.088429,56545.0,56542.0,0.77675068]
[1725549239880,0.088424,56549.0,56546.0,0.088426]
[1725549240381,0.088424,56549.0,56542.0,0.68935668]
[1725549240382,0.088426,56547.0,56542.0,0.37935668]
[1725549240583,0.004,56543.0,56542.0,0.68831668]
[1725549240789,0.004,56543.0,56542.0,0.77675068]
[1725549241175,0.092432,56543.0,56542.0,0.37831668]
[1725549241383,0.092432,56543.0,56542.0,0.3648]
[1725549241692,0.490864,56543.0,56542.0,0.3648]
[1725549241883,0.490864,56543.0,56542.0,0.004]
[1725549243291,0.580296,56543.0,56542.0,0.004]
[1725549243590,0.580296,56543.0,56537.0,0.00017745]
[1725549243591,0.57532,56538.0,56537.0,0.00017745]
[1725549243786,0.94012,56538.0,56537.0,0.00017745]
[1725549243989,0.85168,56538.0,56537.0,0.00017745]
[1725549244187,2.07076,56538.0,56537.0,4.5e-07]
[1725549244885,2.08476,56538.0,56537.0,4.5e-07]
[1725549245587,2.08476,56538.0,56507.0,0.41609162]
[1725549245588,0.088479,56514.0,56507.0,0.41609162]
[1725549245791,0.31,56517.0,56508.0,0.8815]
[1725549245984,0.088484,56510.0,56508.0,0.8815]
[1725549246588,0.088484,56510.0,56508.0,0.5913]
[1725549246589,0.398485,56509.0,56508.0,0.5913]
[1725549246788,0.398485,56509.0,56508.0,0.5663]
[1725549247096,0.088487,56508.0,56500.0,0.3608]
[1725549247396,0.088487,56508.0,56493.0,0.10520243]
[1725549247397,0.314,56501.0,56489.0,0.3608]
[1725549247697,0.092515,56490.0,56489.0,0.3608]
[1725549247903,0.088518,56489.0,56481.0,0.00889549]
[1725549248201,0.449303,56498.0,56488.0,0.398518]
[1725549248394,0.449303,56498.0,56489.0,0.3068]
[1725549248694,0.31,56496.0,56489.0,0.3068]
[1725549248895,0.398506,56496.0,56489.0,0.3068]
[1725549249196,0.08851,56494.0,56489.0,0.3068]
[1725549249497,0.3608,56498.0,56474.0,0.6708]
[1725549249498,0.3608,56490.0,56474.0,0.6708]
[1725549249697,0.004,56482.0,56476.0,0.3608]
[1725549250002,0.6708,56477.0,56471.0,0.3608]
[1725549250187,0.004,56472.0,56471.0,0.3608]
[1725549250498,0.6628,56472.0,56465.0,0.00466101]
[1725549250694,0.6748,56466.0,56448.0,0.3608]
[1725549250887,0.004,56449.0,56448.0,0.3608]
[1725549251086,0.3608,56460.0,56453.0,0.088572]
[1725549251291,0.31,56456.0,56455.0,0.3608]
[1725549251596,0.3608,56460.0,56455.0,0.3608]
[1725549251597,0.31,56459.0,56455.0,0.3608]
[1725549251900,0.31,56459.0,56448.0,0.36541364]
[1725549252102,0.004,56449.0,56448.0,0.36541364]
[1725549252299,0.004,56449.0,56448.0,0.37341364]
[1725549252686,0.004,56449.0,56448.0,0.3688]
[1725549253395,0.00026551,56463.0,56455.0,0.088569]
[1725549253596,0.00026551,56463.0,56448.0,1.81024]
[1725549253597,0.00026551,56463.0,56458.0,0.088565]
[1725549253793,0.00026551,56463.0,56448.0,0.3688]
[1725549253794,0.31,56460.0,56454.0,0.3608]
[1725549253995,0.31,56460.0,56455.0,0.08857]
[1725549254195,0.00026551,56463.0,56461.0,0.08856]
[1725549254389,0.00026551,56463.0,56454.0,0.3608]
[1725549254586,0.00026551,56463.0,56460.0,0.088562]
[1725549254787,0.00026551,56463.0,56461.0,0.08856]
[1725549255087,0.00026551,56463.0,56462.0,0.31]
[1725549255798,0.00026551,56463.0,56461.0,0.08856]
[1725549255996,0.004,56462.0,56461.0,0.08856]
[1725549256194,0.004,56462.0,56455.0,0.100569]
[1725549256499,0.004,56456.0,56455.0,0.10057]
[1725549256896,0.004,56456.0,56455.0,1.23197]
[1725549257407,0.00026551,56463.0,56462.0,0.088559]
[1725549258298,0.00026551,56463.0,56462.0,0.449359]
[1725549258495,0.00026551,56463.0,56462.0,0.088559]
[1725549259495,0.00026551,56463.0,56462.0,1.579879]
[1725549259695,0.3608,56479.0,56462.0,2.13352]
[1725549259899,0.3608,56479.0,56468.0,0.088548]
[1725549259900,0.3608,56472.0,56468.0,0.088548]
[1725549260096,0.3608,56472.0,56470.0,0.088546]
[1725549260298,0.3608,56474.0,56462.0,0.36172]
[1725549260602,0.3628,56463.0,56462.0,0.00026551]
[1725549261301,0.451357,56463.0,56462.0,0.00026551]
[1725549262000,0.3628,56463.0,56462.0,0.00026551]
[1725549262204,0.451357,56463.0,56462.0,0.00026551]
[1725549262594,0.3628,56463.0,56462.0,0.00026551]
[1725549263199,0.451357,56463.0,56462.0,0.00026551]
[1725549263396,0.3628,56463.0,56462.0,0.00026551]
[1725549263903,0.08880651,56474.0,56467.0,0.08855]
[1725549263904,0.3608,56471.0,56467.0,0.08855]
[1725549264095,0.3608,56471.0,56468.0,0.088549]
[1725549264298,0.449345,56471.0,56466.0,0.36]
[1725549264500,0.002,56467.0,56466.0,0.36]
[1725549264705,0.002,56467.0,56466.0,0.448553]
[1725549265092,0.3608,56471.0,56466.0,0.36]
[1725549265291,0.3608,56471.0,56470.0,0.088547]
[1725549265503,0.00026551,56474.0,56473.0,0.088542]
[1725549265703,0.00026551,56474.0,56468.0,0.3608]
[1725549265704,0.00026551,56474.0,56472.0,0.36]
[1725549265901,0.002,56473.0,56472.0,0.36]
[1725549266102,0.002,56473.0,56468.0,0.3608]
[1725549266103,0.002,56473.0,56471.0,0.088544]
[1725549266306,0.002,56472.0,56471.0,0.088544]
[1725549266897,0.00026551,56474.0,56472.0,0.088542]
[1725549267309,0.00026551,56474.0,56468.0,0.3608]
[1725549267500,0.00026551,56474.0,56473.0,0.449342]
[1725549267707,5.1e-07,56474.0,56473.0,0.626426]
[1725549268005,0.088509,56495.0,56473.0,2.13904]
[1725549268205,0.088503,56498.0,56494.0,0.36]
[1725549268395,0.00469577,56501.0,56494.0,0.36]
[1725549268596,0.3608,56502.0,56494.0,0.36]
[1725549268798,0.3608,56502.0,56498.0,0.088502]
[1725549269005,0.00026551,56504.0,56499.0,0.36]
[1725549269506,0.29909144,56506.0,56499.0,0.4485]
[1725549270098,0.3608,56511.0,56499.0,0.4485]
[1725549270300,0.088489,56507.0,56500.0,0.088499]
[1725549270496,0.08849,56506.0,56499.0,0.36]
[1725549270712,0.00026551,56509.0,56504.0,0.36]
[1725549270898,0.00026551,56509.0,56506.0,0.08849]
[1725549271103,0.00026551,56509.0,56504.0,0.36]
[1725549271405,0.088484,56510.0,56504.0,0.36]
[1725549271614,0.04621863,56510.0,56504.0,0.448493]
[1725549271799,0.3608,56511.0,56504.0,0.36]
[1725549271998,0.3608,56513.0,56512.0,0.088481]
[1725549272195,0.3608,56519.0,56518.0,0.088471]
[1725549272395,0.449259,56527.0,56518.0,0.36]
[1725549272611,0.2877,56534.0,56518.0,0.36]
[1725549272612,0.00216,56541.0,56532.0,0.088449]
[1725549272907,0.3608,56539.0,56533.0,0.36]
[1725549273112,0.3608,56539.0,56532.0,0.09720534]
[1725549273113,0.3608,56534.0,56532.0,0.09720534]
[1725549273308,0.002,56533.0,56532.0,0.09720534]
[1725549273501,0.002,56533.0,56532.0,0.449249]
[1725549273701,0.002,56533.0,56532.0,0.45819489]
[1725549274105,0.00026527,56538.0,56537.0,0.088442]
[1725549274301,0.00026527,56538.0,56537.0,1.048442]
[1725549274508,0.3608,56553.0,56537.0,1.85144]
[1725549274701,0.3608,56553.0,56541.0,0.088435]
[1725549274702,0.3608,56546.0,56541.0,0.088435]
[1725549274902,0.3608,56546.0,56537.0,0.3608]
[1725549275102,0.002,56538.0,56537.0,0.3608]
[1725549275312,0.3608,56546.0,56537.0,0.3608]
[1725549275508,0.00017563,56547.0,56545.0,0.088428]
[1725549275709,0.00017563,56552.0,56543.0,0.3608]
[1725549276009,0.088434,56542.0,56540.0,0.00026527]
[1725549276211,0.002,56541.0,56540.0,0.00026527]
[1725549277310,1.1326,56541.0,56527.0,0.3608]
[1725549277514,0.002,56528.0,56527.0,0.3608]
[1725549278098,0.002,56528.0,56523.0,0.00461781]
[1725549278304,0.090462,56524.0,56522.0,0.00026527]
[1725549278505,0.090463,56523.0,56522.0,0.00026527]
[1725549278811,0.088463,56523.0,56522.0,0.00026527]
[1725549279011,1.219223,56523.0,56522.0,0.00026527]
[1725549279702,0.088463,56523.0,56522.0,0.00026527]
[1725549279902,1.219223,56523.0,56522.0,0.00026527]
[1725549280509,1.13076,56523.0,56505.0,0.088491]
[1725549280707,0.002,56508.0,56506.0,0.36]
[1725549280904,0.002,56508.0,56507.0,0.45808414]
[1725549281215,0.002,56508.0,56507.0,0.449289]
[1725549281907,0.00026527,56513.0,56512.0,0.088481]
[1725549282419,0.00026527,56513.0,56512.0,0.448481]
[1725549282907,0.3608,56524.0,56519.0,0.088469]
[1725549283104,0.3608,56524.0,56520.0,0.088468]
[1725549284109,0.449262,56524.0,56520.0,0.088468]
[1725549284311,0.449262,56524.0,56517.0,0.36]
[1725549284312,0.3608,56524.0,56521.0,0.088465]
[1725549284525,0.36106527,56528.0,56519.0,0.3608]
[1725549284816,0.36106527,56528.0,56518.0,0.08847]
[1725549284817,0.3628,56520.0,56518.0,0.08847]
[1725549285019,0.002,56519.0,56518.0,0.08847]
[1725549285416,0.002,56519.0,56516.0,0.00026527]
[1725549285628,0.090473,56517.0,56516.0,0.00026527]
[1725549286118,0.090473,56517.0,56516.0,0.44953927]
[1725549286119,0.002,56517.0,56516.0,0.44953927]
[1725549286314,0.36106527,56528.0,56516.0,1.49186527]
[1725549286509,0.36106527,56528.0,56525.0,0.36]
[1725549286714,0.36106527,56528.0,56527.0,0.088457]
[1725549286912,0.36106527,56528.0,56525.0,0.36]
[1725549287231,0.002,56526.0,56520.0,0.36]
[1725549287408,0.3608,56523.0,56516.0,0.36210527]
[1725549287613,0.002,56517.0,56516.0,0.00026527]
[1725549287814,0.088473,56517.0,56516.0,0.00026527]
[1725549289412,0.088473,56517.0,56516.0,0.00491765]
[1725549289615,0.088473,56517.0,56516.0,0.00026527]
[1725549292019,0.088473,56517.0,56516.0,0.00497686]
[1725549292214,0.088473,56517.0,56516.0,0.00026527]
[1725549292416,0.088473,56517.0,56516.0,0.36026527]
[1725549293218,0.002,56521.0,56516.0,0.36026527]
[1725549293425,0.088473,56517.0,56516.0,0.36026527]
[1725549293619,0.088473,56517.0,56516.0,0.00026527]
[1725549294316,0.176946,56517.0,56516.0,0.00026527]
[1725549296029,0.18153608,56517.0,56516.0,0.00026527]
[1725549296229,0.27000908,56517.0,56516.0,0.00026527]
[1725549297230,0.27000908,56517.0,56506.0,0.06978636]
[1725549297231,0.176978,56507.0,56506.0,0.06978636]
[1725549297426,0.176984,56505.0,56504.0,0.08799162]
[1725549297620,0.176986,56504.0,56503.0,0.00897552]
[1725549297925,0.176986,56504.0,56501.0,0.39799162]
[1725549297926,0.088496,56502.0,56501.0,0.08799162]
[1725549298122,0.090496,56502.0,56501.0,0.08799162]
[1725549298324,0.088498,56501.0,56500.0,0.08799162]
[1725549298528,0.090498,56501.0,56500.0,0.13483919]
[1725549299124,0.176998,56500.0,56499.0,0.09704167]
[1725549299325,0.090499,56500.0,56499.0,0.0089826]
[1725549299527,0.088501,56499.0,56498.0,0.08805741]
[1725549299719,0.088501,56499.0,56498.0,0.09675142]
[1725549299918,0.002,56499.0,56498.0,0.32010308]
[1725549300120,0.088495,56504.0,56498.0,1.36304567]
[1725549300319,0.3628,56505.0,56503.0,0.31]
[1725549300526,0.088493,56504.0,56503.0,0.08805821]
[1725549300726,0.088493,56504.0,56501.0,0.09708773]
[1725549300918,0.090496,56502.0,56501.0,0.09708773]
[1725549301118,0.002,56502.0,56501.0,0.09752752]
[1725549301324,0.088494,56504.0,56502.0,0.088496]
[1725549301524,0.088494,56504.0,56503.0,0.31]
[1725549301723,0.3608,56505.0,56503.0,0.31]
[1725549301724,0.3608,56505.0,56504.0,0.088493]
[1725549302030,0.00026527,56507.0,56506.0,0.08849]
[1725549302333,0.35366164,56516.0,56511.0,0.088481]
[1725549302537,0.35366164,56516.0,56515.0,0.07043309]
[1725549302538,0.44213564,56516.0,56515.0,0.07043309]
[1725549302720,0.088478,56514.0,56513.0,0.07043309]
[1725549302926,0.090478,56514.0,56513.0,0.07043309]
[1725549303128,0.090478,56514.0,56513.0,0.38043309]
[1725549303431,0.090478,56514.0,56509.0,0.31892099]
[1725549303635,0.090478,56514.0,56508.0,0.08830535]
[1725549303636,0.088485,56509.0,56508.0,0.00026527]
[1725549303838,0.090485,56509.0,56508.0,0.00906939]
[1725549304032,0.088485,56509.0,56508.0,0.00026527]
[1725549304235,0.17697,56509.0,56508.0,0.00026527]
[1725549304529,0.17697,56509.0,56508.0,0.0707132]
[1725549304738,0.176978,56507.0,56506.0,1.8e-07]
[1725549305042,0.6728,56507.0,56492.0,0.07049891]
[1725549305235,0.088512,56492.0,56490.0,0.08804008]
[1725549305433,0.088517,56489.0,56488.0,0.08804008]
[1725549305625,0.002,56491.0,56488.0,0.73486937]
[1725549305825,0.002,56491.0,56490.0,0.759315]
[1725549306030,0.45129,56507.0,56490.0,1.37491731]
[1725549306031,0.088491,56506.0,56490.0,1.37491731]
[1725549306338,0.3628,56507.0,56490.0,1.37491731]
[1725549306339,0.3628,56507.0,56505.0,0.31]
[1725549306536,0.3628,56507.0,56499.0,0.3608]
[1725549306537,0.451289,56507.0,56504.0,0.07049334]
[1725549306736,0.088501,56499.0,56494.0,3.4e-07]
[1725549306927,0.088501,56499.0,56489.0,0.10574001]
[1725549306928,0.088518,56488.0,56485.0,0.08811667]
[1725549307125,0.002,56486.0,56485.0,0.08811667]
[1725549307431,0.00026552,56502.0,56493.0,0.088509]
[1725549307632,0.00026552,56502.0,56501.0,0.31]
[1725549307835,0.00026552,56502.0,56500.0,0.08814299]
[1725549308137,0.00026552,56502.0,56499.0,0.3608]
[1725549308138,0.002,56501.0,56499.0,0.44894299]
[1725549308339,0.002,56500.0,56499.0,0.44894299]
[1725549308538,0.002,56501.0,56499.0,0.58378433]
[1725549308739,0.090498,56501.0,56500.0,0.22298254]
[1725549308937,0.090498,56501.0,56499.0,0.44894299]
[1725549309141,0.002,56501.0,56500.0,0.22298263]
[1725549309338,0.002,56501.0,56499.0,0.53744399]
[1725549309640,0.002,56501.0,56500.0,0.22333845]
[1725549309940,0.088482,56512.0,56501.0,0.53096]
[1725549310242,0.088482,56512.0,56508.0,0.39811448]
[1725549310538,0.3608,56516.0,56508.0,0.08811448]
[1725549310739,0.088487,56508.0,56507.0,0.08811448]
[1725549311039,0.088489,56507.0,56506.0,0.44891632]
[1725549311336,0.088499,56500.0,56499.0,0.44891632]
[1725549311541,0.090499,56500.0,56499.0,0.3608]
[1725549311935,0.177008,56497.0,56496.0,0.00026552]
[1725549312139,0.938312,56497.0,56496.0,0.00026552]
[1725549312335,2.069312,56497.0,56496.0,5.2e-07]
[1725549312640,1.469312,56497.0,56496.0,5.2e-07]
[1725549312844,0.002,56497.0,56496.0,5.2e-07]
[1725549313031,0.002,56497.0,56496.0,0.08850652]
[1725549313234,0.002,56497.0,56496.0,0.75435053]
[1725549313539,0.002,56497.0,56496.0,0.2279268]
[1725549314241,0.088491,56506.0,56501.0,0.088496]
[1725549314439,0.088491,56506.0,56501.0,0.8473691]
[1725549314739,0.088491,56506.0,56502.0,0.31139274]
[1725549314931,0.088491,56506.0,56502.0,0.1765691]
[1725549315139,0.088496,56502.0,56501.0,0.4497931]
[1725549315334,0.178992,56502.0,56501.0,0.3608]
[1725549315532,0.176996,56501.0,56500.0,0.3608]
[1725549315831,0.177008,56497.0,56496.0,5.2e-07]
[1725549316035,0.858312,56497.0,56496.0,5.2e-07]
[1725549316228,1.987312,56497.0,56496.0,5.2e-07]
[1725549316746,1.99198541,56497.0,56496.0,5.2e-07]
[1725549317238,1.39198541,56497.0,56496.0,5.2e-07]
[1725549317443,1.99198541,56497.0,56496.0,5.2e-07]
[1725549318931,1.39198541,56497.0,56496.0,5.2e-07]
[1725549319143,1.99198541,56497.0,56496.0,5.2e-07]
[1725549319344,0.177064,56479.0,56478.0,0.036]
[1725549319531,0.63704454,56479.0,56466.0,0.36172]
[1725549319734,0.2865,56478.0,56471.0,0.3608]
[1725549319947,0.088543,56472.0,56471.0,0.3608]
[1725549320939,0.088551,56467.0,56466.0,0.36106552]
[1725549321145,0.092551,56467.0,56466.0,0.36106552]
[1725549321448,0.004,56467.0,56466.0,1.58089852]
[1725549321649,0.004,56467.0,56466.0,0.44961852]
[1725549321841,0.004,56467.0,56466.0,0.36106552]
[1725549321842,0.092551,56467.0,56466.0,0.36106552]
[1725549322037,0.004,56467.0,56466.0,0.36106552]
[1725549322245,0.092551,56467.0,56466.0,0.36106552]
[1725549322848,0.092551,56467.0,56466.0,0.00026552]
[1725549323352,0.004,56467.0,56466.0,0.00026552]
[1725549323548,0.088532,56480.0,56473.0,0.088541]
[1725549323746,0.088533,56479.0,56476.0,0.23]
[1725549323941,0.088534,56478.0,56476.0,0.23]
[1725549324141,0.3608,56482.0,56473.0,0.3608]
[1725549324338,0.004,56474.0,56468.0,0.23]
[1725549324543,0.088542,56473.0,56472.0,0.23]
[1725549324840,0.004,56474.0,56467.0,0.23]
[1725549325037,0.088551,56467.0,56466.0,0.36506552]
[1725549325240,0.092551,56467.0,56466.0,0.36506552]
[1725549325450,0.088551,56467.0,56466.0,0.00426552]
[1725549326155,0.004,56468.0,56466.0,0.23426552]
[1725549326351,0.004,56468.0,56466.0,0.59506552]
[1725549326553,0.004,56468.0,56466.0,0.36506552]
[1725549326853,0.59106552,56477.0,56473.0,0.088542]
[1725549326854,0.36106552,56477.0,56473.0,0.088542]
[1725549327050,0.36106552,56477.0,56473.0,0.679342]
[1725549327260,0.302,56496.0,56474.0,0.5312]
[1725549327562,0.3608,56496.0,56491.0,0.23]
[1725549327761,0.3608,56496.0,56487.0,0.5908]
[1725549328054,0.002,56488.0,56487.0,0.3608]
[1725549328258,0.3608,56496.0,56487.0,0.3608]
[1725549328259,0.08636579,56531.0,56512.0,0.3608]
[1725549328549,0.3608,56548.0,56500.0,0.1771]
[1725549328550,0.3608,56548.0,56530.0,0.5908]
[1725549328753,0.3608,56548.0,56547.0,0.23]
[1725549328754,0.088425,56548.0,56547.0,0.23]
[1725549328941,1.049225,56548.0,56547.0,0.23]
[1725549329145,0.3608,56548.0,56547.0,0.23]
[1725549329346,0.0047206,56551.0,56543.0,0.3608]
[1725549329642,0.3609751,56553.0,56543.0,0.3608]
[1725549329643,0.002,56544.0,56543.0,0.3608]
[1725549333947,1.13256,56544.0,56543.0,0.3608]
[1725549334349,1.13256,56544.0,56533.0,0.00026552]
[1725549334555,0.088446,56535.0,56533.0,0.00026552]
[1725549334753,0.002,56534.0,56533.0,0.00026552]
[1725549334962,0.53264,56534.0,56533.0,0.00026552]
[1725549335158,0.53264,56534.0,56525.0,0.3608]
[1725549335159,1.13264,56534.0,56525.0,0.3608]
[1725549335460,0.002,56526.0,56525.0,0.3608]
[1725549337253,0.090459,56526.0,56525.0,0.3608]
[1725549338044,0.002,56526.0,56525.0,0.3608]
[1725549339851,0.002,56526.0,56525.0,0.44926]
[1725549340553,0.002,56526.0,56525.0,0.3608]
[1725549341453,0.002,56526.0,56525.0,0.44926]
[1725549342665,0.002,56526.0,56525.0,0.97998]
[1725549343163,0.002,56526.0,56525.0,1.57998]
[1725549343458,0.0001751,56540.0,56529.0,0.27]
[1725549343659,0.0001751,56540.0,56539.0,0.3608]
[1725549344057,0.0001751,56540.0,56539.0,0.449238]
[1725549344657,0.088415,56554.0,56539.0,1.4914]
[1725549344854,0.088415,56554.0,56553.0,0.7216]
[1725549345966,0.707311,56554.0,56553.0,0.3608]
[1725549346161,0.707311,56554.0,56548.0,0.00026526]
[1725549346162,0.176846,56549.0,56548.0,0.00026526]